fUST/lending_fUST_20240815
["ID","MTS","AMOUNT","RATE_DAILY","PERIOD"]
[334990340,1723714240899,-501.04965276,0.00013698,2]
[334990341,1723714240909,-500.0,0.00013698,2]
[334990342,1723714240920,-500.0,0.00013698,2]
[334990343,1723714240931,-500.0,0.00013698,2]
[334990344,1723714240941,-506.65491078,0.00013698,2]
[334990345,1723714240952,-500.0,0.00013698,2]
[334990346,1723714240963,-500.0,0.00013698,2]
[334990347,1723714240972,-500.0,0.00013698,2]
[334990348,1723714240982,-504.65905847,0.00013698,2]
[334990349,1723714240991,-500.0,0.00013698,2]
[334990350,1723714241001,-502.59028558,0.00013698,2]
[334990351,1723714241010,-500.0,0.00013698,2]
[334990352,1723714241019,-500.0,0.00013698,2]
[334990353,1723714241029,-500.0,0.00013698,2]
[334990354,1723714241039,-500.0,0.00013698,2]
[334990355,1723714241048,-500.0,0.00013698,2]
[334990356,1723714241059,-502.66179801,0.00013698,2]
[334990357,1723714241070,-500.0,0.00013698,2]
[334990358,1723714241080,-500.0,0.00013698,2]
[334990359,1723714241090,-500.0,0.00013698,2]
[334990360,1723714241100,-503.13183539,0.00013698,2]
[334990361,1723714241240,-500.0,0.00013698,2]
[334990362,1723714241250,-500.0,0.00013698,2]
[334990363,1723714241261,-500.0,0.00013698,2]
[334990364,1723714241270,-546.69,0.00013698,2]
[334990365,1723714241280,-555.47,0.00013698,2]
[334990366,1723714241289,-620.79638147,0.00013698,2]
[334990367,1723714241298,-500.0,0.00013698,2]
[334990368,1723714241307,-13.69296055,0.00013698,2]
[334990369,1723714241326,-486.30703945,0.00013698,2]
[334990370,1723714241335,-500.0,0.00013698,2]
[334990371,1723714241355,-500.0,0.00013698,2]
[334990372,1723714241364,-500.0,0.00013698,2]
[334990373,1723714241373,-500.0,0.00013698,2]
[334990374,1723714241383,-580.03293539,0.00013698,2]
[334990375,1723714241392,-512.88543441,0.00013698,2]
[334990376,1723714241401,-504.99208689,0.00013698,2]
[334990377,1723714241410,-500.0,0.00013698,2]
[334990378,1723714241419,-500.0,0.00013698,2]
[334990379,1723714241428,-523.63,0.00013698,2]
[334990380,1723714241437,-500.0,0.00013698,2]
[334990381,1723714241446,-500.0,0.00013698,2]
[334990382,1723714241455,-500.0,0.00013698,2]
[334990383,1723714241464,-504.53771264,0.00013698,2]
[334990384,1723714241473,-500.0,0.00013698,2]
[334990385,1723714241483,-501.64638506,0.00013698,2]
[334990386,1723714241492,-502.34607036,0.00013698,2]
[334990387,1723714241503,-638.76,0.00013698,2]
[334990388,1723714241512,-500.0,0.00013698,2]
[334990389,1723714241522,-500.0,0.00013698,2]
[334990390,1723714241531,-500.0,0.00013698,2]
[334990391,1723714241541,-500.0,0.00013698,2]
[334990392,1723714241551,-500.0,0.00013698,2]
[334990393,1723714241560,-768.12,0.00013698,2]
[334990394,1723714241570,-500.0,0.00013698,2]
[334990395,1723714241579,-500.0,0.00013698,2]
[334990396,1723714241589,-697.64,0.00013698,2]
[334990397,1723714241599,-500.0,0.00013698,2]
[334990398,1723714241609,-500.0,0.00013698,2]
[334990399,1723714241620,-711.33,0.00013698,2]
[334990400,1723714241630,-500.0,0.00013698,2]
[334990401,1723714241641,-500.0,0.00013698,2]
[334990402,1723714241652,-500.0,0.00013698,2]
[334990403,1723714241662,-151.0,0.00013698,2]
[334990404,1723714241671,-500.0,0.00013698,2]
[334990405,1723714241681,-160.121955,0.00013698,2]
[334990406,1723714241691,-500.0,0.00013698,2]
[334990407,1723714241700,-500.0,0.00013698,2]
[334990408,1723714241709,-500.0,0.00013698,2]
[334990409,1723714241718,-500.0,0.00013698,2]
[334990410,1723714241729,-309.36,0.00013698,2]
[334990411,1723714241741,-500.0,0.00013698,2]
[334990412,1723714241752,-500.0,0.00013698,2]
[334990413,1723714241762,-500.0,0.00013698,2]
[334990414,1723714241771,-500.0,0.00013698,2]
[334990415,1723714241781,-500.0,0.00013698,2]
[334990416,1723714241791,-500.0,0.00013698,2]
[334990417,1723714241800,-500.0,0.00013698,2]
[334990418,1723714241810,-500.0,0.00013698,2]
[334990419,1723714241821,-500.0,0.00013698,2]
[334990420,1723714241831,-500.0,0.00013698,2]
[334990421,1723714241842,-500.0,0.00013698,2]
[334990422,1723714241855,-705.82,0.00013698,2]
[334990423,1723714241864,-509.16562092,0.00013698,2]
[334990424,1723714241876,-500.0,0.00013698,2]
[334990425,1723714241885,-503.20865657,0.00013698,2]
[334990426,1723714241894,-500.0,0.00013698,2]
[334990427,1723714241904,-500.0,0.00013698,2]
[334990428,1723714241913,-500.0,0.00013698,2]
[334990429,1723714241922,-500.0,0.00013698,2]
[334990430,1723714241932,-500.55993347,0.00013698,2]
[334990431,1723714241941,-500.0,0.00013698,2]
[334990432,1723714241950,-739.29,0.00013698,2]
[334990433,1723714241959,-500.0,0.00013698,2]
[334990434,1723714241969,-500.0,0.00013698,2]
[334990435,1723714241977,-500.0,0.00013698,2]
[334990436,1723714241986,-500.0,0.00013698,2]
[334990437,1723714241995,-484.56118132,0.00013698,2]
[334990438,1723714242005,-731.82,0.00013698,2]
[334990439,1723714242015,-1145.49,0.00013698,2]
[334990440,1723714242026,-500.0,0.00013698,2]
[334990441,1723714242035,-500.0,0.00013698,2]
[334990442,1723714242046,-526.32,0.00013698,2]
[334990443,1723714242056,-500.0,0.00013698,2]
[334990444,1723714242065,-876.37,0.00013698,2]
[334990445,1723714242074,-485.79420532,0.00013698,2]
[334990446,1723714242084,-500.0,0.00013698,2]
[334990447,1723714242094,-500.0,0.00013698,2]
[334990448,1723714242104,-500.0,0.00013698,2]
[334990449,1723714242113,-500.0,0.00013698,2]
[334990450,1723714242123,-500.0,0.00013698,2]
[334990451,1723714242132,-500.0,0.00013698,2]
[334990452,1723714242142,-500.0,0.00013698,2]
[334990453,1723714242152,-500.0,0.00013698,2]
[334990454,1723714242164,-827.95,0.00013698,2]
[334990455,1723714242174,-472.23054707,0.00013698,2]
[334990456,1723714242183,-205.37050875,0.00013698,2]
[334990457,1723714242194,-500.0,0.00013698,2]
[334990458,1723714242203,-581.26349839,0.00013698,2]
[334990459,1723714242211,-500.0,0.00013698,2]
[334990461,1723714242221,-500.0,0.00013698,2]
[334990462,1723714242231,-500.0,0.00013698,2]
[334990463,1723714242240,-500.0,0.00013698,2]
[334990464,1723714242250,-500.0,0.00013698,2]
[334990465,1723714242261,-500.0,0.00013698,2]
[334990466,1723714242270,-439.28384441,0.00013698,2]
[334990467,1723714242279,-500.0,0.00013698,2]
[334990468,1723714242288,-500.0,0.00013698,2]
[334990469,1723714242298,-500.0,0.00013698,2]
[334990470,1723714242307,-552.87660334,0.00013698,2]
[334990471,1723714242316,-500.0,0.00013698,2]
[334990472,1723714242326,-500.0,0.00013698,2]
[334990473,1723714242335,-500.0,0.00013698,2]
[334990474,1723714242346,-503.45819239,0.00013698,2]
[334990475,1723714242355,-724.34,0.00013698,2]
[334990476,1723714242367,-556.08411123,0.00013698,2]
[334990477,1723714242377,-505.13049909,0.00013698,2]
[334990478,1723714242386,-500.0,0.00013698,2]
[334990479,1723714242395,-500.0,0.00013698,2]
[334990480,1723714242405,-500.0,0.00013698,2]
[334990481,1723714242415,-696.9,0.00013698,2]
[334990482,1723714242424,-500.0,0.00013698,2]
[334990483,1723714242433,-500.0,0.00013698,2]
[334990484,1723714242443,-672.43,0.00013698,2]
[334990485,1723714242453,-151.0,0.00013698,2]
[334990486,1723714242463,-151.0,0.00013698,2]
[334990487,1723714242472,-500.0,0.00013698,2]
[334990488,1723714242482,-151.0,0.00013698,2]
[334990489,1723714242493,-500.0,0.00013698,2]
[334990490,1723714242503,-151.0,0.00013698,2]
[334990491,1723714242512,-151.0,0.00013698,2]
[334990492,1723714242522,-151.0,0.00013698,2]
[334990493,1723714242533,-151.0,0.00013698,2]
[334990495,1723714242543,-505.45132813,0.00013698,2]
[334990497,1723714242553,-595.78,0.00013698,2]
[334990499,1723714242563,-531.85742716,0.00013698,2]
[334990501,1723714242572,-831.88,0.00013698,2]
[334990503,1723714242583,-500.0,0.00013698,2]
[334990504,1723714242595,-500.0,0.00013698,2]
[334990506,1723714242605,-500.0,0.00013698,2]
[334990508,1723714242614,-801.45,0.00013698,2]
[334990510,1723714242624,-500.0,0.00013698,2]
[334990511,1723714242633,-528.13880111,0.00013698,2]
[334990512,1723714242643,-500.0,0.00013698,2]
[334990513,1723714242652,-666.31,0.00013698,2]
[334990514,1723714242661,-500.0,0.00013698,2]
[334990515,1723714242670,-563.39339795,0.00013698,2]
[334990516,1723714242680,-500.0,0.00013698,2]
[334990517,1723714242689,-500.0,0.00013698,2]
[334990518,1723714242699,-500.0,0.00013698,2]
[334990519,1723714242709,-500.0,0.00013698,2]
[334990520,1723714242721,-500.0,0.00013698,2]
[334990521,1723714242732,-500.0,0.00013698,2]
[334990522,1723714242742,-692.09,0.00013698,2]
[334990523,1723714242756,-500.0,0.00013698,2]
[334990524,1723714242767,-500.0,0.00013698,2]
[334990525,1723714242777,-525.19,0.00013698,2]
[334990526,1723714242787,-500.0,0.00013698,2]
[334990527,1723714242798,-500.0,0.00013698,2]
[334990528,1723714242807,-659.33,0.00013698,2]
[334990529,1723714242817,-701.11,0.00013698,2]
[334990530,1723714242827,-500.0,0.00013698,2]
[334990531,1723714242841,-500.0,0.00013698,2]
[334990532,1723714242850,-500.0,0.00013698,2]
[334990533,1723714242861,-500.0,0.00013698,2]
[334990534,1723714242870,-500.0,0.00013698,2]
[334990535,1723714242880,-500.0,0.00013698,2]
[334990536,1723714242889,-538.07066586,0.00013698,2]
[334990537,1723714242899,-500.0,0.00013698,2]
[334990538,1723714242909,-562.5,0.00013698,2]
[334990539,1723714242919,-562.5,0.00013698,2]
[334990540,1723714242928,-562.5,0.00013698,2]
[334990541,1723714242938,-562.5,0.00013698,2]
[334990542,1723714242947,-500.0,0.00013698,2]
[334990543,1723714242957,-562.5,0.00013698,2]
[334990544,1723714242967,-562.5,0.00013698,2]
[334990545,1723714242977,-562.5,0.00013698,2]
[334990546,1723714242987,-562.5,0.00013698,2]
[334990547,1723714242996,-562.5,0.00013698,2]
[334990548,1723714243006,-562.5,0.00013698,2]
[334990549,1723714243016,-562.5,0.00013698,2]
[334990550,1723714243026,-562.5,0.00013698,2]
[334990551,1723714243036,-562.5,0.00013698,2]
[334990552,1723714243046,-562.5,0.00013698,2]
[334990553,1723714243055,-562.5,0.00013698,2]
[334990554,1723714243065,-778.7,0.00013698,2]
[334990555,1723714243075,-562.5,0.00013698,2]
[334990556,1723714243084,-500.0,0.00013698,2]
[334990557,1723714243096,-373.59197901,0.00013698,2]
[334990558,1723714243105,-509.97939403,0.00013698,2]
[334990559,1723714243114,-500.0,0.00013698,2]
[334990560,1723714243123,-500.0,0.00013698,2]
[334990561,1723714243133,-500.0,0.00013698,2]
[334990562,1723714243142,-500.0,0.00013698,2]
[334990563,1723714243151,-500.0,0.00013698,2]
[334990564,1723714243161,-506.27203636,0.00013698,2]
[334990565,1723714243171,-500.0,0.00013698,2]
[334990566,1723714243180,-500.0,0.00013698,2]
[334990567,1723714243189,-500.0,0.00013698,2]
[334990568,1723714243199,-500.0,0.00013698,2]
[334990569,1723714243208,-598.65,0.00013698,2]
[334990570,1723714243219,-646.54647418,0.00013698,2]
[334990571,1723714243228,-361.1656613,0.00013698,2]
[334990572,1723714243237,-573.42,0.00013698,2]
[334990573,1723714243246,-500.0,0.00013698,2]
[334990574,1723714243255,-500.0,0.00013698,2]
[334990575,1723714243265,-500.0,0.00013698,2]
[334990576,1723714243274,-503.51802139,0.00013698,2]
[334990577,1723714243284,-500.0,0.00013698,2]
[334990578,1723714243294,-500.0,0.00013698,2]
[334990579,1723714243304,-500.0,0.00013698,2]
[334990580,1723714243314,-500.0,0.00013698,2]
[334990581,1723714243323,-1420.01,0.00013698,2]
[334990582,1723714243334,-500.0,0.00013698,2]
[334990583,1723714243354,-499.31497447,0.00013698,2]
[334990584,1723714243364,-500.0,0.00013698,2]
[334990585,1723714243374,-509.5476719,0.00013698,2]
[334990586,1723714243384,-555.73798203,0.00013698,2]
[334990587,1723714243394,-500.0,0.00013698,2]
[334990588,1723714243404,-719.3,0.00013698,2]
[334990589,1723714243413,-500.0,0.00013698,2]
[334990590,1723714243423,-505.36823899,0.00013698,2]
[334990591,1723714243433,-342.27455418,0.00013698,2]
[334990592,1723714243446,-955.05,0.00013698,2]
[334990593,1723714243456,-500.0,0.00013698,2]
[334990594,1723714243467,-748.8,0.00013698,2]
[334990595,1723714243477,-500.0,0.00013698,2]
[334990596,1723714243487,-500.0,0.00013698,2]
[334990597,1723714243499,-642.12,0.00013698,2]
[334990598,1723714243509,-500.0,0.00013698,2]
[334990599,1723714243520,-500.0,0.00013698,2]
[334990600,1723714243530,-500.0,0.00013698,2]
[334990601,1723714243541,-500.0,0.00013698,2]
[334990602,1723714243551,-500.0,0.00013698,2]
[334990603,1723714243562,-991.59,0.00013698,2]
[334990604,1723714243572,-500.0,0.00013698,2]
[334990605,1723714243583,-500.0,0.00013698,2]
[334990606,1723714243596,-500.0,0.00013698,2]
[334990607,1723714243606,-648.75,0.00013698,2]
[334990608,1723714243615,-500.0,0.00013698,2]
[334990609,1723714243625,-500.0,0.00013698,2]
[334990610,1723714243634,-500.0,0.00013698,2]
[334990611,1723714243643,-500.0,0.00013698,2]
[334990612,1723714243653,-500.0,0.00013698,2]
[334990613,1723714243663,-500.0,0.00013698,2]
[334990614,1723714243673,-506.07,0.00013698,2]
[334990615,1723714243682,-729.56,0.00013698,2]
[334990616,1723714243692,-693.68,0.00013698,2]
[334990617,1723714243702,-500.0,0.00013698,2]
[334990618,1723714243712,-863.26,0.00013698,2]
[334990619,1723714243723,-786.87,0.00013698,2]
[334990620,1723714243733,-500.0,0.00013698,2]
[334990621,1723714243751,-500.0,0.00013698,2]
[334990622,1723714243762,-691.21,0.00013698,2]
[334990623,1723714243772,-500.0,0.00013698,2]
[334990624,1723714243782,-584.3404547,0.00013698,2]
[334990625,1723714243793,-689.52,0.00013698,2]
[334990626,1723714243802,-705.73,0.00013698,2]
[334990627,1723714243812,-500.0,0.00013698,2]
[334990628,1723714243822,-506.26458535,0.00013698,2]
[334990629,1723714243833,-500.0,0.00013698,2]
[334990630,1723714243846,-500.0,0.00013698,2]
[334990631,1723714243855,-500.0,0.00013698,2]
[334990632,1723714243864,-500.0,0.00013698,2]
[334990633,1723714243873,-500.0,0.00013698,2]
[334990634,1723714243883,-185.0,0.00013698,2]
[334990635,1723714243892,-500.0,0.00013698,2]
[334990636,1723714243901,-508.34672954,0.00013698,2]
[334990637,1723714243910,-585.26,0.00013698,2]
[334990639,1723714243920,-500.0,0.00013698,2]
[334990641,1723714243929,-506.95200765,0.00013698,2]
[334990643,1723714243938,-500.0,0.00013698,2]
[334990644,1723714243948,-503.72157249,0.00013698,2]
[334990645,1723714244073,-500.0,0.00013698,2]
[334990646,1723714244083,-500.0,0.00013698,2]
[334990647,1723714244095,-500.0,0.00013698,2]
[334990648,1723714244104,-737.35,0.00013698,2]
[334990649,1723714244114,-500.0,0.00013698,2]
[334990650,1723714244123,-556.88,0.00013698,2]
[334990651,1723714244132,-503.61535578,0.00013698,2]
[334990652,1723714244141,-560.01,0.00013698,2]
[334990653,1723714244150,-503.97391153,0.00013698,2]
[334990654,1723714244160,-503.17764221,0.00013698,2]
[334990655,1723714244168,-500.0,0.00013698,2]
[334990656,1723714244178,-838.94,0.00013698,2]
[334990657,1723714244187,-500.0,0.00013698,2]
[334990658,1723714244195,-506.65835242,0.00013698,2]
[334990659,1723714244204,-218.200989,0.00013698,2]
[334990660,1723714244213,-500.0,0.00013698,2]
[334990661,1723714244223,-448.39632702,0.00013698,2]
[334990662,1723714244232,-508.88,0.00013698,2]
[334990663,1723714244241,-783.26,0.00013698,2]
[334990664,1723714244250,-622.8,0.00013698,2]
[334990665,1723714244259,-500.0,0.00013698,2]
[334990666,1723714244268,-151.0,0.00013698,2]
[334990667,1723714244278,-264.702478,0.00013698,2]
[334990668,1723714244287,-891.26,0.00013698,2]
[334990669,1723714244296,-531.07,0.00013698,2]
[334990670,1723714244305,-500.0,0.00013698,2]
[334990671,1723714244315,-500.74936775,0.00013698,2]
[334990672,1723714244324,-500.0,0.00013698,2]
[334990673,1723714244333,-500.0,0.00013698,2]
[334990674,1723714244342,-501.89144435,0.00013698,2]
[334990675,1723714244352,-500.0,0.00013698,2]
[334990676,1723714244361,-500.0,0.00013698,2]
[334990677,1723714244370,-701.44,0.00013698,2]
[334990678,1723714244379,-502.24325675,0.00013698,2]
[334990679,1723714244388,-630.1,0.00013698,2]
[334990680,1723714244397,-151.0,0.00013698,2]
[334990681,1723714244406,-500.0,0.00013698,2]
[334990682,1723714244415,-500.0,0.00013698,2]
[334990683,1723714244425,-500.0,0.00013698,2]
[334990684,1723714244435,-516.30503848,0.00013698,2]
[334990685,1723714244446,-151.0,0.00013698,2]
[334990686,1723714244456,-151.0,0.00013698,2]
[334990687,1723714244465,-151.0,0.00013698,2]
[334990688,1723714244474,-500.0,0.00013698,2]
[334990689,1723714244484,-502.29710798,0.00013698,2]
[334990690,1723714244493,-151.0,0.00013698,2]
[334990691,1723714244503,-151.0,0.00013698,2]
[334990692,1723714244513,-151.0,0.00013698,2]
[334990693,1723714244522,-151.0,0.00013698,2]
[334990694,1723714244532,-151.0,0.00013698,2]
[334990695,1723714244541,-552.6,0.00013698,2]
[334990696,1723714244551,-500.0,0.00013698,2]
[334990697,1723714244560,-500.0,0.00013698,2]
[334990698,1723714244569,-500.0,0.00013698,2]
[334990699,1723714244579,-500.0,0.00013698,2]
[334990700,1723714244589,-500.0,0.00013698,2]
[334990701,1723714244598,-500.0,0.00013698,2]
[334990702,1723714244607,-598.14193,0.00013698,2]
[334990703,1723714244616,-598.14193,0.00013698,2]
[334990704,1723714244626,-598.14193,0.00013698,2]
[334990705,1723714244635,-598.14193,0.00013698,2]
[334990706,1723714244644,-598.14193,0.00013698,2]
[334990707,1723714244655,-500.0,0.00013698,2]
[334990708,1723714244667,-1116.16,0.00013698,2]
[334990709,1723714244676,-598.14193,0.00013698,2]
[334990710,1723714244686,-598.14193,0.00013698,2]
[334990711,1723714244695,-600.03,0.00013698,2]
[334990712,1723714244704,-503.80708114,0.00013698,2]
[334990713,1723714244713,-598.14193,0.00013698,2]
[334990714,1723714244722,-598.14193,0.00013698,2]
[334990715,1723714244731,-598.14193,0.00013698,2]
[334990716,1723714244741,-500.0,0.00013698,2]
[334990717,1723714244750,-598.14193,0.00013698,2]
[334990718,1723714244759,-598.14193,0.00013698,2]
[334990719,1723714244771,-598.14193,0.00013698,2]
[334990720,1723714244781,-598.14193,0.00013698,2]
[334990721,1723714244791,-598.14193,0.00013698,2]
[334990722,1723714244800,-622.69467479,0.00013698,2]
[334990723,1723714244810,-598.14193,0.00013698,2]
[334990724,1723714244819,-500.0,0.00013698,2]
[334990725,1723714244830,-598.14193,0.00013698,2]
[334990726,1723714244840,-500.0,0.00013698,2]
[334990727,1723714244854,-502.43448606,0.00013698,2]
[334990728,1723714244866,-446.91376089,0.00013698,2]
[334990729,1723714244877,-598.14193,0.00013698,2]
[334990730,1723714244886,-598.14193,0.00013698,2]
[334990731,1723714244895,-598.141921,0.00013698,2]
[334990732,1723714244905,-151.0,0.00013698,2]
[334990733,1723714244914,-151.0,0.00013698,2]
[334990734,1723714244923,-151.0,0.00013698,2]
[334990735,1723714244933,-151.0,0.00013698,2]
[334990736,1723714244942,-151.0,0.00013698,2]
[334990737,1723714244951,-500.0,0.00013698,2]
[334990738,1723714244960,-151.0,0.00013698,2]
[334990739,1723714244969,-504.3853113,0.00013698,2]
[334990740,1723714244978,-503.88412054,0.00013698,2]
[334990741,1723714244987,-500.0,0.00013698,2]
[334990742,1723714244997,-500.0,0.00013698,2]
[334990743,1723714245006,-502.37483598,0.00013698,2]
[334990744,1723714245016,-151.0,0.00013698,2]
[334990745,1723714245025,-151.0,0.00013698,2]
[334990746,1723714245035,-151.0,0.00013698,2]
[334990747,1723714245044,-151.0,0.00013698,2]
[334990748,1723714245054,-500.0,0.00013698,2]
[334990749,1723714245064,-500.0,0.00013698,2]
[334990750,1723714245073,-602.83,0.00013698,2]
[334990751,1723714245082,-500.0,0.00013698,2]
[334990752,1723714245096,-502.57236202,0.00013698,2]
[334990753,1723714245106,-1859.06,0.00013698,2]
[334990754,1723714245115,-563.77,0.00013698,2]
[334990755,1723714245124,-500.0,0.00013698,2]
[334990756,1723714245134,-548.27933941,0.00013698,2]
[334990757,1723714245143,-500.0,0.00013698,2]
[334990758,1723714245152,-618.35,0.00013698,2]
[334990759,1723714245162,-702.67,0.00013698,2]
[334990760,1723714245171,-500.0,0.00013698,2]
[334990761,1723714245180,-959.54,0.00013698,2]
[334990762,1723714245189,-179.53129533,0.00013698,2]
[334990763,1723714245198,-222.63837823,0.00013698,2]
[334990764,1723714245207,-642.99,0.00013698,2]
[334990765,1723714245216,-500.0,0.00013698,2]
[334990766,1723714245225,-760.22,0.00013698,2]
[334990767,1723714245234,-5760.42,0.00013698,2]
[334990768,1723714245243,-151.0,0.00013698,2]
[334990769,1723714245252,-5760.42,0.00013698,2]
[334990770,1723714245261,-151.0,0.00013698,2]
[334990771,1723714245270,-294.568081,0.00013698,2]
[334990772,1723714245280,-5760.42,0.00013698,2]
[334990773,1723714245289,-151.0,0.00013698,2]
[334990774,1723714245299,-294.568081,0.00013698,2]
[334990776,1723714245309,-5760.42,0.00013698,2]
[334990777,1723714245319,-151.0,0.00013698,2]
[334990778,1723714245328,-294.568081,0.00013698,2]
[334990779,1723714245338,-5760.42,0.00013698,2]
[334990780,1723714245349,-151.0,0.00013698,2]
[334990781,1723714245359,-5760.42,0.00013698,2]
[334990782,1723714245368,-294.568081,0.00013698,2]
[334990783,1723714245377,-5760.42,0.00013698,2]
[334990784,1723714245387,-575.102508,0.00013698,2]
[334990785,1723714245396,-294.568081,0.00013698,2]
[334990786,1723714245406,-500.0,0.00013698,2]
[334990787,1723714245415,-5760.42,0.00013698,2]
[334990788,1723714245427,-575.102508,0.00013698,2]
[334990789,1723714245438,-294.568081,0.00013698,2]
[334990791,1723714245448,-1258.24,0.00013698,2]
[334990792,1723714245457,-376.48681712,0.00013698,2]
[334990806,1723714246132,-294.568081,0.00013698,2]
[334990807,1723714246142,-294.568081,0.00013698,2]
[334990808,1723714246151,-575.102508,0.00013698,2]
[334990809,1723714246160,-23.15668924,0.00013698,2]
[334990824,1723714625566,200.0,0.0001,2]
[334990825,1723714633057,2475.0,0.00027,120]
[334990826,1723714642501,2111.27572321,0.0001,2]
[334990827,1723714650479,5000.0,0.00027,120]
[334990828,1723714692277,10000.0,0.00027,120]
[334990829,1723714699825,10000.0,0.00027,120]
[334990830,1723714715969,4828.43,0.00027,120]
[334990831,1723714718954,30000.0,0.00027,120]
[334990832,1723714752792,6000.0,0.00027,120]
[334990834,1723714778380,374.54,0.00027,120]
[334990837,1723715174044,500.0,0.00027,120]
[334990838,1723715199277,500.0,0.00027,120]
[334990866,1723715431978,-293.56680005,0.0001137,2]
[334991079,1723715438586,-106.43319995,0.0001137,2]
[334991080,1723715438599,-850.51877308,0.00012551,2]
[334991081,1723715438613,-155.00571711,0.00012934,2]
[334991082,1723715438623,-257.10132751,0.00012971,2]
[334991083,1723715438634,-162.370892,0.00012986,2]
[334991084,1723715438646,-422.14513971,0.00013025,2]
[334991085,1723715438658,-604.04266225,0.00013373,2]
[334991086,1723715438667,-153.0,0.000134,2]
[334991087,1723715438678,-511.9126545,0.000134,2]
[334991088,1723715438689,-153.0,0.000134,2]
[334991089,1723715438699,-468.8259631,0.0001346,2]
[334991090,1723715438710,-300.0,0.00013499,2]
[334991091,1723715438720,-582.8354928,0.000135,2]
[334991093,1723715438885,-153.0,0.000135,2]
[334991094,1723715438895,-5170.89065962,0.00013588,2]
[334991095,1723715438906,-604.83895641,0.00013598,2]
[334991096,1723715438917,-5324.62888985,0.00013602,2]
[334991097,1723715438927,-42418.44967211,0.00013688,2]
[334991106,1723715440230,-3831.17641609,0.00013688,2]
[334991113,1723715440362,-155132.2388248,0.00013688,2]
[334991114,1723715440372,-16781.8220761,0.00013689,2]
[334991115,1723715440382,-3779.7270464,0.00013698,2]
[334991116,1723715440391,-205.1576302,0.00013698,2]
[334991117,1723715440402,-500.0,0.00013698,2]
[334991118,1723715440412,-500.0,0.00013698,2]
[334991119,1723715440422,-500.0,0.00013698,2]
[334991120,1723715440431,-500.0,0.00013698,2]
[334991121,1723715440441,-500.0,0.00013698,2]
[334991122,1723715440450,-505.13049909,0.00013698,2]
[334991123,1723715440461,-500.0,0.00013698,2]
[334991124,1723715440471,-500.0,0.00013698,2]
[334991125,1723715440480,-500.0,0.00013698,2]
[334991126,1723715440491,-505.45132813,0.00013698,2]
[334991128,1723715440500,-500.0,0.00013698,2]
[334991130,1723715440510,-500.0,0.00013698,2]
[334991132,1723715440520,-500.0,0.00013698,2]
[334991134,1723715440530,-528.13880111,0.00013698,2]
[334991135,1723715440540,-500.0,0.00013698,2]
[334991136,1723715440550,-500.0,0.00013698,2]
[334991137,1723715440560,-563.39339795,0.00013698,2]
[334991138,1723715440576,-500.0,0.00013698,2]
[334991139,1723715440585,-801.45,0.00013698,2]
[334991140,1723715440595,-500.0,0.00013698,2]
[334991141,1723715440604,-500.0,0.00013698,2]